Cogmind - Beta 16 @@@ ROGUE MODE // 2026.01.08 @ 10:39:16 Player: leto Result: Destroyed by as-43627 with Assembled Blade Performance ------------- Evolutions (0) 0 Regions Visited (2) 400 Robots Destroyed (29) 145 Value Destroyed (651) 651 Prototype IDs (2) 40 Alien Tech Used (0) 0 Bonus (0) 0 TOTAL SCORE: 1236 Bonus ------- None Cogmind --------- Core Integrity 0/250 Matter 300/300 Energy 265/265 System Corruption 4% Temperature Cool (27) Movement Rolling (145) Ox3 Location -10/Mines Parts ------- > --- POWER (1) -------- Improved Ion Engine > --- PROPULSION (2) --- Compact Wheel > --- UTILITY (2) ------ High-capacity Storage Unit > --- WEAPON (2) ------- EM Pulse Gun Heavy EM Pulse Gun > --- INVENTORY (20) --- Improved Ion Engine Improved Ion Engine Flight Unit Flight Unit Flight Unit Flight Unit Propulsion Shielding Propulsion Shielding Utility Shielding Hacking Suite Heavy EM Pulse Gun Datajack Peak State ------------ > --- POWER ------------ Improved Ion Engine > --- PROPULSION ------- Wheel Compact Wheel > --- UTILITY ---------- High-capacity Storage Unit Core Shielding > --- WEAPON ----------- Heavy EM Pulse Gun Heavy EM Pulse Gun > --- INVENTORY -------- Improved Ion Engine Improved Ion Engine Improved Ion Engine Flight Unit Flight Unit Flight Unit Flight Unit Propulsion Shielding Propulsion Shielding Utility Shielding Hacking Suite EM Pulse Gun EM Pulse Gun Heavy EM Pulse Gun Datajack [Rating: 12] Favorites ----------- Power Ion Engine Engine Ion Engine Power Core Light Nuclear Core Propulsion Light Treads Treads Light Treads Wheel Wheel Utility Core Shielding Storage High-capacity Storage Unit Protection Core Shielding Weapon EM Pulse Gun Energy Gun EM Pulse Gun Ballistic Gun Assault Rifle Build | -11 -10 -10 ------- Run | Yrd Mat Min Slots Evolved . | . . . Power . | . . . Propulsion . | . . . Utility . | . . . Weapon . | . . . Parts Attached 25 | 6 15 4 Power 6 | 1 4 1 Engine 5 | 1 3 1 Core 1 | . 1 . Reactor . | . . . Propulsion 5 | 2 2 1 Treads 2 | 2 . . Leg . | . . . Wheel 3 | . 2 1 Hover . | . . . Flight . | . . . Utility 5 | 1 4 . Device . | . . . Storage 4 | 1 3 . Processor . | . . . Hackware . | . . . Protection 1 | . 1 . Artifact . | . . . Weapon 9 | 2 5 2 Energy Gun 8 | 1 5 2 Energy Cannon . | . . . Ballistic Gun 1 | 1 . . Ballistic Cannon . | . . . Launcher . | . . . Special Weapon . | . . . Impact Weapon . | . . . Slashing Weapon . | . . . Piercing Weapon . | . . . Special Melee Weapon . | . . . Unidentified Prototypes . | . . . Parts Lost 12 | . 6 6 Power 2 | . 1 1 Propulsion 3 | . 2 1 Utility 1 | . . 1 Weapon 6 | . 3 3 Highest Loss Streak 4 | . 3 4 To Critical Strikes . | . . . Average Backups 9 | 1 8 15 Power . | . . 2 Propulsion 5 | 1 5 4 Utility 1 | . 1 4 Weapon 1 | . 1 3 Tool/Special . | . . . Unused Backups 12 | . . 12 Power 2 | . . 2 Propulsion 4 | . . 4 Utility 4 | . . 4 Weapon 1 | . . 1 Tool/Special 1 | . . 1 Average Slot Usage (%) 86 | . 84 94 Engine 13 | . 13 13 Treads 11 | . 14 . Wheel 8 | . 4 25 Storage 14 | . 14 14 Protection 12 | . 12 14 Energy Gun 21 | . 20 26 Ballistic Gun 2 | . 3 . Peak Build Rating 12 | 6 12 12 Average Rating 7 | 4 6 10 On Entrance 6 | . 6 12 Avg Prop Armor Cover (%) 6 | . . 6 Naked Turns . | . . . Heaviest Build 54 | 14 54 54 Greatest Support 40 | 40 40 26 Greatest Overweight (x) 5 | . 4 5 Average Overweight (x) . | . . 2 Largest Inventory Capacity 20 | 8 20 20 Average Capacity 14 | 6 13 20 Most Carried 16 | 2 16 16 Average Carried 9 | 1 8 15 Final Capacity 20 | 8 20 20 Final Carried 16 | 2 16 12 Class Distribution -------------------- 100% | Mutant Dominant Class ---------------- Mutant | -10/Materials Mutant | -10/Mines Resources | -11 -10 -10 ----------- Run | Yrd Mat Min Matter Collected 657 | 65 507 85 Remotely . | . . . Salvage Created 997 | . 939 58 Parts 61 | . 61 . Haulers Intercepted 2 | . 2 . Recyclers Shooed 1 | . 1 . Parts Field Recycled . | . . . Retrieved Matter . | . . . Parts Self-Destructed . | . . . Prevented . | . . . Parts Restored . | . . . Kills | -11 -10 -10 ------- Run | Yrd Mat Min Combat Hostiles Destroyed 23 | . 20 3 Guns 18 | . 16 2 AOE 3 | . 3 . Classes Destroyed 8 | . 7 1 Worker 1 | . 1 . Builder 2 | . 2 . Hauler 2 | . 2 . Operator 3 | . 3 . Watcher 1 | . 1 . Swarmer 6 | . 6 . Grunt 14 | . 14 . Assembled 3 | . . 3 Best Kill Streak 6 | . 6 1 Combat Bots Only 5 | . 5 1 Max Kills in Single Turn 2 | . 2 1 Gunslinging 1 | . 1 . Exploded 1 | . 1 . Melee . | . . . Uniques/NPCs Destroyed . | . . . Combat | -11 -10 -10 -------- Run | Yrd Mat Min Hostile Shots Fired 123 | . 86 37 Missed 21 | . 15 6 Hits 102 | . 71 31 Melee 1 | . . 1 Projectile 101 | . 71 30 Critical Strikes 2 | . 1 1 Part Disruptions 1 | . . 1 Damage Taken 1325 | . 891 434 Core 262 | . 177 85 Absorbed by Shields . | . . . Redirected to Shielding 50 | . 34 16 Core Remaining (%) 100 | 100 . . Volleys Fired 114 | . 87 27 Largest 2 | . 2 2 Hottest 90 | . 80 90 Shots Fired 182 | . 140 42 Gun 182 | . 140 42 Cannon . | . . . Launcher . | . . . Special . | . . . Kinetic 35 | . 35 . Thermal 63 | . 63 . Explosive . | . . . Electromagnetic 84 | . 42 42 Robot Hit Streak 18 | . 18 5 Robot Miss Streak 3 | . 3 3 Penetration Max . | . . . Secondary Targets 1 | . 1 . Max Gunslinging Chain 1 | . 1 . Shots Hit Robots 118 | . 96 22 Core Hits 48 | . 42 6 Critical Kills . | . . . Critical Parts Destroyed . | . . . Critical Strikes 2 | . 1 1 Burn 1 | . 1 . Corrupt 1 | . . 1 Melee Attacks . | . . . Impact . | . . . Slashing . | . . . Piercing . | . . . Sneak Attacks . | . . . Combat Hostiles . | . . . Follow-up Attacks . | . . . Damage Inflicted 1692 | 5 1402 285 Guns 1518 | . 1233 285 Cannons . | . . . Explosions 147 | . 147 . Melee . | . . . Ramming 27 | 5 22 . Kinetic 303 | . 303 . Thermal 738 | . 738 . Explosive . | . . . Electromagnetic 624 | . 339 285 Impact . | . . . Slashing . | . . . Piercing . | . . . Highest Corruption 4 | . 4 4 Average Corruption 3 | . 3 4 Corruption Purged . | . . . Corruption Blocked . | . . . Effects 58 | . 47 11 Message Errors 17 | . 14 3 Matter Fused 9 | . 7 2 Heat Flow Errors 7 | . 5 2 Energy Discharges 2 | . 2 . Parts Rejected 1 | . . 1 Parts Fused 1 | . . 1 Data Loss (minor) 9 | . 9 . Data Loss (major) 4 | . 3 1 Misfires 4 | . 4 . Alerts 2 | . 2 . Weapon Failures 2 | . 1 1 Overload Shots . | . . . Overflow Damage 12 | . 12 . Projectiles . | . . . Explosions 12 | . 12 . Melee . | . . . Knockbacks 1 | . 1 . Impact 1 | . 1 . Kinetic . | . . . Secondary . | . . . Self-Inflicted Damage 121 | . 121 . Shots 3 | . 3 . Rammed 6 | 1 5 . Targets Rammed 6 | 1 5 . Kicked . | . . . Crushed . | . . . Highest Temperature 307 | . 307 197 Average Temperature 76 | . 75 79 Received Heat Transfer 474 | . 354 120 Siege Activations . | . . . Martial Activations . | . . . Shielding Activations . | . . . Robots Disrupted . | . . . Combat Hostiles . | . . . Robots Corrupted 2 | . 1 1 Combat Hostiles 2 | . 1 1 Parts Fried 2 | . 2 . Impact Corruptions . | . . . Robots Melted . | . . . Combat Hostiles . | . . . Parts Melted 3 | . 3 . Heat Transferred 2063 | . 2063 . Parts Sabotaged . | . . . Parts Stolen . | . . . Parts Stripped . | . . . Power Chain Reactions 3 | . 3 . Alert | -11 -10 -10 ------- Run | Yrd Mat Min Maximum Alert Level . | . . . Low Security (%) 100 | 100 100 100 Level 1 . | . . . Level 2 . | . . . Level 3 . | . . . Level 4 . | . . . Level 5 . | . . . High Security . | . . . Max Security . | . . . Peak Influence 125 | . 125 7 Initial 7 | . . 7 Average 30 | . 37 . Influence Increases 588 | . 588 . Destroy 0b10 Robot/C 400 | . 400 . Destroy 0b10 Robot/NC 45 | . 45 . Destroy Leader 96 | . 96 . Successful Hack 6 | . 6 . Disable Machine 15 | . 15 . Destroy Structure 11 | . 11 . Lose Combat Pursuer 15 | . 15 . Influence Decreases 588 | . 567 21 Entered New Map 14 | . . 14 Time Decay 514 | . 507 7 Lost Part 60 | . 60 . Squads Dispatched 5 | . 5 . Investigation 2 | . 2 . Extermination . | . . . Reinforcement 3 | . 3 . Assault . | . . . Garrison . | . . . Intercept . | . . . Searches Triggered . | . . . Construction Impeded . | . . . Haulers Reinforced . | . . . Active Scanning Responses . | . . . Cargo Convoy Interrupts . | . . . Stealth | -11 -10 -10 --------- Run | Yrd Mat Min Distress Signals 2 | . . 2 Communications Jammed . | . . . Distress Signals . | . . . Times Spotted 41 | . 35 6 Peak Tracking Total 6 | . 6 2 Tactical Retreats 2 | . 1 1 Traps | -11 -10 -10 ------- Run | Yrd Mat Min Traps Triggered 7 | . 7 . Indirectly . | . . . Trap Hack Attempts . | . . . Triggered . | . . . Disarmed . | . . . Reprogrammed . | . . . Reused . | . . . Traps Extracted . | . . . Installed . | . . . Triggered . | . . . Machines | -11 -10 -10 ---------- Run | Yrd Mat Min Machines Disabled 1 | . 1 . Max in Single Turn 1 | . 1 . Machines Repaired . | . . . Machines Dismantled . | . . . Machines Sabotaged . | . . . Overloaded Fab Kills . | . . . Hacking | -11 -10 -10 --------- Run | Yrd Mat Min Machines Accessed 4 | . 4 . Terminals 4 | . 4 . Fabricators . | . . . Repair Stations . | . . . Recycling Units . | . . . Scanalyzers . | . . . Garrison Access . | . . . Total Hacks 10 | . 10 . Successful 3 | . 3 . Failed 7 | . 7 . Catastrophic 1 | . 1 . Database Lockouts . | . . . Manual 8 | . 8 . Terminals 10 | . 10 . Fabricators . | . . . Repair Stations . | . . . Recycling Units . | . . . Scanalyzers . | . . . Garrison Access . | . . . Terminal Hacks 1 | . 1 . Prototype ID Bank 1 | . 1 . Fabricator Hacks . | . . . Repair Station Hacks . | . . . Recycling Unit Hacks . | . . . Scanalyzer . | . . . Garrison Access Hacks . | . . . Unauthorized Hacks 2 | . 2 . Terminals 2 | . 2 . Botnet 1 | . 1 . Operators 1 | . 1 . Fabricators . | . . . Repair Stations . | . . . Recycling Units . | . . . Scanalyzers . | . . . Garrison Access . | . . . Data Cores Recovered . | . . . Used . | . . . Hacking Detections 4 | . 4 . Full Trace Events 3 | . 3 . Feedback Events . | . . . Feedback Blocked . | . . . Robot Schematics Acquired . | . . . Robots Built . | . . . Authchips . | . . . Time . | . . . Total Robot Build Rating . | . . . Part Schematics Acquired . | . . . Parts Built . | . . . Authchips . | . . . Time . | . . . Total Part Build Rating . | . . . Part Studies Acquired . | . . . Parts Repaired . | . . . Time . | . . . Parts Recycled . | . . . Recycled Matter . | . . . Retrieved Matter . | . . . Retrieved Components . | . . . Parts Scanalyzed . | . . . Part Schematics Acquired . | . . . Parts Damaged . | . . . Bothacking | -11 -10 -10 ------------ Run | Yrd Mat Min Used RIF Installer . | . . . Robots Hacked . | . . . Non-combat . | . . . Combat . | . . . Robot Hacks Applied . | . . . Relay Couplers Released . | . . . Fabnet Peak Effective % . | . . . Robots Rewired . | . . . Allies Hacked . | . . . Hacks Repelled . | . . . Allies | -11 -10 -10 -------- Run | Yrd Mat Min Total Allies . | . . . Largest Group . | . . . Highest-Rated Group . | . . . Highest-Rated Ally . | . . . Total Orders . | . . . Ally Attacks . | . . . Total Damage . | . . . Kills . | . . . Allies Corrupted . | . . . Allies Melted . | . . . Intel | -11 -10 -10 ------- Run | Yrd Mat Min Active Infowar (turns) . | . . . Robot Analysis Total . | . . . Derelict Logs Recovered . | . . . Drone Launches . | . . . Drone Recoveries . | . . . Exploration | -11 -10 -10 ------------- Run | Yrd Mat Min Turns Passed 2389 | 70 1908 411 Spaces Moved 1229 | 38 946 245 Core 5 | 2 3 . Treads 686 | 36 650 . Legs . | . . . Wheels 538 | . 293 245 Hover . | . . . Flight . | . . . Fastest Speed 50 | 50 105 105 Average Speed 158 | 154 167 124 Slowest Speed 320 | 160 320 155 Overloaded Moves . | . . . Propulsion Burnouts . | . . . Robots Hopped . | . . . Potential Cave-ins . | . . . Cave-ins Triggered . | . . . Exploration Rate (%) 52 | 3 97 57 Regions Visited 2 Branch Regions 1 Pre-discovered Areas . | . . . Known Exits Taken . | . . . Unknown Exits Taken 2 | 1 1 . Scrap Searched 1 | . . 1 Spaces Dug . | . . . Terrain Destroyed 8 | . 8 . Melee . | . . . Projectile . | . . . AOE 8 | . 8 . Terrain Rammed . | . . . Walls Destroyed . | . . . Machines Disabled . | . . . Actions | -11 -10 -10 --------- Run | Yrd Mat Min Total 1473 | 46 1121 306 Wait 69 | . 40 29 Move 1227 | 37 945 245 Hop . | . . . Pick Up 18 | 2 16 . Fast Attach 19 | 6 12 1 Attach 7 | . 3 4 Detach . | . . . Swap 9 | . 9 . Drop 4 | . 4 . Fire 114 | . 87 27 Melee . | . . . Ram 1 | . 1 . Kick . | . . . Crush 5 | 1 4 . Escape Stasis . | . . . Rewire . | . . . Trap . | . . . Miscellaneous . | . . . Route ------- -11/Scrapyard -10/Materials (discovered 4 exits: [*Mat x3] / [*Min]) -10/Mines History --------- Turn | Location | Event 45 | -11/Scrapyard | Discovered new exit (range 15) 71 | -11/Scrapyard | Entered Materials 300 | -10/Materials | Build established: Mutant 410 | -10/Materials | Discovered new exit (range 13) 575 | -10/Materials | Lost 3 parts (1p1n1w) 1045 | -10/Materials | Discovered new exit (range 5) 1320 | -10/Materials | Core integrity fell below 50% 1407 | -10/Materials | Discovered new exit (range 15) 1445 | -10/Materials | Discovered new exit (range 5) 1669 | -10/Materials | Lost 3 parts (1n2w) 1979 | -10/Materials | Entered Mines 2038 | -10/Mines | Assembled infested the area 2043 | -10/Mines | Assisted by a Guerilla fighting off Assembled 2250 | -10/Mines | Core integrity fell below 20% 2289 | -10/Mines | Lost 4 parts (1n3w) 2390 | -10/Mines | Destroyed by as-43627 with Assembled Blade Last Messages --------------- Acquired 20 matter. Hvy. EM Pulse Gun destroyed. EM Pulse Gun destroyed. SV:&>VJMY|OVUGHJNWB6,T/O6WWONEPGI %J: as-94069 destroyed. Acquired 15 matter. Searching scrap... Found Com. Wheel. Found Transport Network Coupler. Found 64 Matter. Acquired Com. Wheel. Acquired 10 matter. System corrupted: Heat flow error (+216). Acquired 10 matter. Imp. Ion Engine destroyed. System corrupted: EM Pulse Gun failed to cycle. Destroyed Asb. F-torch. Acquired 10 matter. System corrupted: Wheel rejected. Core Shielding destroyed. Map ----- +----------------------------------------------------+ | ??# #??????????????####???### ##???? | | ??# #??????????????# #??## ##????? | | ??# #??????????????# #### ##????? | | ??# #??????????????# ## ##???? | | ??# #??????????????# % ##??? | | ### #??????????????# #### ##?? | | #????????####??## ##??## % #?? | | #???????## #??## #????# % #?? | | #### #####???# #?## ##??## #?? | | ??## ##??# ## #??# #### ##?? | | ??# ##?# #?## ##???###??? | | ??# #??# ## ##?# #?????????? | | #?## #??###### ######?## ##?????????? | | ##?## !#???????## ##??????# ##??????????? | | #??## ##????????####???????# #???????????? | | #???## ##???????????????????## #???????????? | | #???## #?????????????????#### #???????????? | | ##### ##????????????????## ##???????????? | | ##?????????????????# ##??????####?? | | ##??????????????????## ####?## ##? | | #????????????????????## ### #? | | #????????????????????## #? | | ## #?????????????????????## #? | | ?## ##??????????????????????# ## #? | | ??#####???????????????#########% ### ##? | | ??????????????????????# a@ %*! #?###### ##?? | | ??????????????????????# ##########???????###??? | | ????????????????????? ??????????????????????? | | ????????????????????# ???????????????????????? | | ????????????????????# ???????????????????????? | | ???????????????????? ????????????????????????? | | ??????????????????? ????????????????????????? | | ?????????????????? ?????????????????????????? | | ????????????????? ?????????????????????????? | | ???????????????? ??????????????????????????? | | ??????????????? ??????????????????????????? | | ?????????????? ???????????????????????????? | | ???????????????####???????????????????????????? | | ??????????????????????????????????????????????? | | ??????????????????????????????????????????????? | | ??????????????????????????????????????????????? | | ??????????????????????????????????????????????? | | ??????????????????????????????????????????????? | | ??????????????????????????????????????????????? | | ??????????????????????????????????????????????? | | ??????????????????????????????????????????????? | | ??????????????????????????????????????????????? | | ??????????????????????????????????????????????? | | ??????????????????????????????????????????????? | | ??????????????????????????????????????????????? | +----------------------------------------------------+ Best States ------------- Heat Dissipation 25 Energy Generation 14 Energy Capacity 265 Matter Stores 300 Matter Capacity 300 Sight Range 16 Terrain Scan Density 10 Core Shielding 20 Evasion (%) 40 Recoil Reduction 2 Item Schematics ----------------- None Robot Schematics ------------------ None Fabricated ------------ Nothing Repaired ---------- Nothing Studied --------- None Alien Tech Used ----------------- None Achievements -------------- Ghost 'Em Challenges ------------ None Game ------ Seed CoolingFieldPendant Manual? 0 Play Time 00:15:02 Cumulative 11.0 hours Start 2026.01.08 @ 10:26:43 End 2026.01.08 @ 10:39:16 Sessions 1 Manual Loads 0 Difficulty Rogue Special Mode None Game No. 14 Rogue 14 Adventurer 0 Explorer 0 Win Type - Total 0 Types 0/0/0/0/0/0/0/0/0/0 Lore% 3 Gallery% 14 Achievement% 16 Wizard Run 0 Options --------- Layout 1 ASCII 0 Keyboard 1 Movement Vi Keybinds 0 Fullscreen 1 Font 24/Smallcaps Map View 50x40 Zoom Use 0% Tactical HUD 0 Map Filters NONE Filters NONE Steam 1 RUN: d0cff5f2-4d0d-44a6-9ca1-c9861f2c555f